bitfinex/quotes_ETHUSD_20260313
["timestamp","ask_amount","ask_price","bid_price","bid_amount"]
[1773366064240,0.46208915,2126.2,2125.5,3.97685064]
[1773366064444,0.46208915,2126.2,2125.5,1.662]
[1773366065334,1.1758619,2126.1,2125.5,1.662]
[1773366066528,0.46208915,2126.0,2125.0,2.31485064]
[1773366067039,0.46208915,2126.0,2125.0,3.49131686]
[1773366067240,0.46208915,2126.0,2125.0,2.31485064]
[1773366067412,0.46208915,2125.8,2125.0,2.31485064]
[1773366068037,0.46208915,2125.7,2124.7,1.661]
[1773366068240,1.17597252,2125.9,2125.1,2.31485064]
[1773366068542,5.16597926,2126.0,2125.4,2.31485064]
[1773366068543,1.63804423,2126.0,2125.4,2.31485064]
[1773366068742,4.7034378,2126.2,2125.7,2.31485064]
[1773366068915,1.1758066,2126.2,2125.7,2.31485064]
[1773366069338,1.1758066,2126.2,2125.7,3.49092996]
[1773366069535,4.70244812,2126.6,2125.7,2.31485064]
[1773366069840,0.46208915,2126.5,2125.5,3.49100301]
[1773366070040,0.46208915,2126.5,2125.6,1.661]
[1773366070244,0.46208915,2126.5,2125.5,1.661]
[1773366071330,1.17569601,2126.4,2125.6,2.31485064]
[1773366071532,1.17569601,2126.4,2125.9,2.31485064]
[1773366071839,0.46208915,2126.8,2125.9,2.31485064]
[1773366071840,1.17553016,2126.7,2125.9,2.31485064]
[1773366072043,0.46208915,2126.6,2125.6,1.17611038]
[1773366072924,0.002,2126.3,2125.3,1.66]
[1773366073116,0.46408915,2126.3,2125.3,1.66]
[1773366073641,1.1758066,2126.2,2125.3,2.83626564]
[1773366073825,1.1758066,2126.2,2125.3,1.66]
[1773366073826,0.46208915,2126.1,2125.3,1.66]
[1773366074023,0.46208915,2126.1,2125.3,2.83629404]
[1773366074230,0.46208915,2126.1,2125.4,0.04704996]
[1773366074432,0.46208915,2126.1,2125.3,1.70705218]
[1773366075546,0.002,2126.3,2125.8,2.31485064]
[1773366075735,0.002,2126.3,2125.5,3.49100266]
[1773366075930,0.46408915,2126.3,2125.5,2.31485064]
[1773366076242,0.46408915,2126.3,2125.5,3.538091]
[1773366076416,0.002,2126.3,2125.9,2.31485064]
[1773366076622,0.002,2126.5,2125.9,2.31485064]
[1773366077152,1.63750885,2126.9,2126.4,2.31485064]
[1773366077343,1.17525385,2127.2,2126.7,2.31485064]
[1773366077818,1.17525385,2127.2,2126.7,2.30912064]
[1773366079021,1.17525385,2127.2,2126.5,5.14945285]
[1773366079521,0.46208915,2127.1,2126.0,1.658]
[1773366079840,0.46208915,2126.7,2126.0,1.658]
[1773366080153,0.46208915,2126.7,2125.5,3.4910334]
[1773366080447,0.46208915,2126.7,2125.7,2.31485064]
[1773366080746,0.46208915,2126.7,2125.9,2.31485064]
[1773366081245,0.46208915,2126.7,2125.8,2.31485064]
[1773366081451,0.46208915,2126.7,2125.9,1.658]
[1773366081749,1.17558544,2126.6,2125.9,2.88097958]
[1773366081931,1.17558544,2126.6,2125.9,1.658]
[1773366082131,1.65840676,2126.6,2125.9,1.658]
[1773366082331,0.48282132,2126.5,2125.9,1.658]
[1773366083150,0.48282132,2126.5,2125.5,3.49101371]
[1773366083331,0.48282132,2126.5,2125.5,3.49104042]
[1773366083534,0.48282132,2126.5,2125.5,3.49103828]
[1773366083847,0.48282132,2126.5,2125.6,0.04704554]
[1773366084351,1.65851733,2126.4,2125.6,1.658]
[1773366084656,1.65851733,2126.4,2125.6,1.70504554]
[1773366084843,1.65851733,2126.4,2125.6,1.658]
[1773366085024,0.48282132,2126.2,2125.0,2.81124294]
[1773366085380,0.48282132,2125.9,2124.9,0.04706103]
[1773366085522,6.15869601,2126.4,2124.9,2.31485064]
[1773366085523,0.48282132,2126.1,2124.9,2.31485064]
[1773366086733,1.65873853,2126.0,2125.0,1.17647058]
[1773366087159,0.48282132,2125.9,2124.8,1.17755939]
[1773366087368,0.48282132,2125.9,2125.0,0.001]
[1773366087527,0.48282132,2125.9,2125.1,2.31485064]
[1773366087726,1.17589438,2126.1,2125.4,2.31485064]
[1773366087930,0.48282132,2126.0,2125.4,1.657]
[1773366088125,0.48282132,2126.0,2125.0,2.31585064]
[1773366088349,0.48282132,2126.0,2125.0,0.001]
[1773366088555,0.48282132,2125.8,2125.0,0.001]
[1773366088758,1.65890449,2125.7,2125.0,0.001]
[1773366089752,0.48282132,2125.6,2125.0,0.001]
[1773366090138,0.48282132,2125.6,2124.8,0.001]
[1773366090869,0.48282132,2125.4,2124.8,0.001]
[1773366091037,0.48282132,2125.4,2124.5,0.001]
[1773366091367,0.48282132,2125.3,2124.5,0.001]
[1773366092055,0.48282132,2125.3,2124.5,1.17773752]
[1773366092651,0.48282132,2125.3,2124.5,0.001]
[1773366092968,0.48282132,2125.1,2124.5,0.001]
[1773366093367,0.48282132,2125.0,2124.5,0.001]
[1773366093573,0.28282132,2125.0,2124.5,0.001]
[1773366094066,0.48282132,2124.7,2124.3,0.001]
[1773366095156,1.17669208,2124.6,2124.3,0.001]
[1773366096053,1.6595134,2124.6,2124.3,0.001]
[1773366097373,1.17652595,2125.0,2124.3,0.001]
[1773366099873,0.48282132,2124.9,2124.3,0.001]
[1773366100070,0.48282132,2124.7,2123.7,2.83218813]
[1773366100572,0.48282132,2124.7,2123.7,1.655]
[1773366100940,0.48282132,2124.7,2124.5,0.001]
[1773366101167,0.48282132,2124.7,2123.7,1.655]
[1773366101473,0.48282132,2124.7,2123.5,1.17727821]
[1773366101672,0.48282132,2124.4,2123.4,3.91454129]
[1773366101844,1.17669208,2124.6,2123.7,0.4963923]
[1773366102045,1.17669208,2124.6,2124.0,0.001]
[1773366103158,1.17652595,2124.9,2124.1,0.49905874]
[1773366103451,1.17652595,2124.9,2124.2,0.04707654]
[1773366103953,4.70610381,2125.0,2124.3,1.17685825]
[1773366104152,4.70610381,2125.0,2124.2,1.17687719]
[1773366105070,4.70610381,2125.0,2124.2,1.22395373]
[1773366106354,0.47020061,2124.9,2124.1,0.04707876]
[1773366106565,0.47020061,2124.8,2124.0,1.65]
[1773366108378,1.64683731,2124.7,2124.0,1.65]
[1773366108751,0.47020061,2124.6,2124.0,1.65]
[1773366109156,0.47020061,2124.5,2123.5,1.67631481]
[1773366110081,1.1766367,2124.7,2123.6,0.49905874]
[1773366110258,1.64683731,2124.7,2123.8,0.49905874]
[1773366110583,1.64683731,2124.7,2123.9,0.04708319]
[1773366111463,0.47646746,2124.6,2123.7,2.82219075]
[1773366111652,0.47646746,2124.5,2123.6,2.82020102]
[1773366111984,1.1766367,2124.7,2123.7,0.52142078]
[1773366112375,1.1766367,2124.7,2123.8,1.17713532]
[1773366113559,1.1766367,2124.7,2123.8,1.22422073]
[1773366113971,1.1766367,2124.7,2123.8,1.69855388]
[1773366114283,1.1766367,2124.7,2123.8,1.65246847]
[1773366114460,0.002,2124.6,2123.8,1.69955388]
[1773366116184,0.002,2124.6,2123.9,0.47433315]
[1773366116357,0.002,2124.6,2124.0,1.6984386]
[1773366116784,0.002,2124.6,2124.1,0.47433315]
[1773366117260,0.002,2124.6,2123.9,1.1770397]
[1773366118070,0.002,2124.6,2123.9,1.22412289]
[1773366118472,0.002,2124.6,2123.9,1.69845604]
[1773366119481,0.002,2124.6,2124.0,0.47433315]
[1773366120285,0.002,2124.6,2124.0,1.6513448]
[1773366120505,2.30911098,2124.6,2123.8,0.001]
[1773366120708,2.30711098,2124.2,2123.8,0.001]
[1773366120874,0.47846746,2124.6,2123.8,1.17809105]
[1773366121265,3.02428218,2124.6,2123.8,0.001]
[1773366121460,0.47646746,2124.5,2123.8,0.001]
[1773366122464,1.65327032,2124.4,2123.8,0.001]
[1773366122972,1.17677033,2124.5,2123.8,0.001]
[1773366124698,1.17677033,2124.5,2123.8,1.17813532]
[1773366124905,1.65323779,2124.5,2123.8,0.001]
[1773366126407,1.17873582,2124.6,2123.8,0.52241856]
[1773366126779,0.47646746,2124.5,2123.9,1.1770799]
[1773366127080,1.17873582,2124.6,2123.5,0.001]
[1773366127081,0.47646746,2124.2,2123.5,0.001]
[1773366127284,0.47646746,2123.9,2123.3,0.001]
[1773366127783,0.47646746,2123.9,2123.0,1.17853737]
[1773366127784,2.78357844,2123.5,2123.0,0.001]
[1773366128217,0.47646746,2123.4,2123.0,0.001]
[1773366128787,3.48452349,2123.3,2123.0,0.001]
[1773366129315,3.48452349,2123.3,2122.4,4.71163893]
[1773366129316,0.47646746,2123.2,2122.4,1.17786978]
[1773366129502,0.47646746,2122.7,2121.7,1.17829219]
[1773366129884,0.47646746,2122.7,2121.7,1.65262534]
[1773366130280,2.78357844,2123.0,2121.8,0.47433315]
[1773366130619,0.47646746,2123.0,2121.9,0.47433315]
[1773366130784,1.17763436,2122.9,2122.0,1.17813383]
[1773366132400,1.17763436,2122.9,2122.1,0.04712313]
[1773366132603,1.17763436,2122.9,2122.2,1.632]
[1773366133313,1.17763436,2122.9,2122.3,1.17796729]
[1773366133711,1.65410182,2122.9,2122.2,2.81001495]
[1773366133918,1.65410182,2122.9,2122.2,2.85713586]
[1773366134710,0.47646746,2122.8,2122.2,2.85713586]
[1773366134894,0.47646746,2122.8,2122.2,2.81001495]
[1773366136098,1.17774532,2122.7,2122.2,2.81001495]
[1773366136607,1.17774532,2122.7,2122.2,2.81002168]
[1773366136810,0.62595245,2123.7,2122.5,0.47433315]
[1773366137126,1.6535079,2124.0,2123.0,0.47433315]
[1773366137322,1.6535079,2124.0,2123.1,1.631]
[1773366138126,1.65336638,2124.3,2123.3,0.47433315]
[1773366139318,1.17689892,2124.3,2123.3,0.47433315]
[1773366139489,0.002,2125.1,2124.1,2.78144413]
[1773366139688,0.002,2125.1,2124.4,2.78144413]
[1773366140203,0.002,2125.1,2124.5,1.17674746]
[1773366141721,0.002,2124.6,2124.5,1.17674746]
[1773366141890,0.002,2124.6,2124.3,1.17684157]
[1773366142299,0.14948499,2126.1,2124.8,0.4718133]
[1773366142588,0.004,2126.0,2124.8,2.77892428]
[1773366142923,0.004,2126.0,2125.0,9.473293]
[1773366143109,0.47956658,2126.0,2124.9,1.632]
[1773366143502,0.004,2126.0,2125.0,10.24027428]
[1773366143710,0.004,2126.0,2125.3,11.772686]
[1773366143908,0.004,2126.0,2125.3,10.659686]
[1773366144099,0.004,2126.0,2125.3,5.86563]
[1773366144615,0.004,2126.0,2125.4,1.17624917]
[1773366144821,0.004,2126.0,2125.5,1.633]
[1773366145220,0.002,2127.0,2126.0,0.4718133]
[1773366145462,0.065536,2127.3,2126.0,0.4718133]
[1773366145463,0.47556658,2128.3,2126.9,2.77892428]
[1773366145611,0.47556658,2128.3,2127.0,1.634]
[1773366145612,0.47556658,2128.1,2127.0,1.634]
[1773366145799,2.78267756,2127.9,2127.0,1.634]
[1773366146118,0.47556658,2127.8,2127.0,1.634]
[1773366146317,2.78267756,2127.6,2127.0,1.634]
[1773366146620,1.65063184,2127.6,2127.0,1.634]
[1773366146831,1.17486724,2127.9,2127.0,1.634]
[1773366147123,2.30711098,2127.5,2126.5,2.77163381]
[1773366147300,0.47556658,2127.7,2126.6,5.74093]
[1773366148402,4.69946896,2128.1,2126.5,5.07874479]
[1773366148403,0.47556658,2128.8,2127.6,2.30711098]
[1773366148607,9.6427718,2129.4,2128.0,2.30711098]
[1773366148608,0.42879765,2129.2,2128.0,2.30711098]
[1773366148917,0.42879765,2129.2,2127.9,5.74093]
[1773366148918,4.69704086,2129.1,2127.9,5.74093]
[1773366149326,2.30711098,2129.0,2127.9,5.74093]
[1773366149540,2.78267756,2129.0,2127.8,4.194027]
[1773366149832,2.30711098,2128.9,2127.7,1.603]
[1773366150033,5.08978854,2129.0,2127.7,1.603]
[1773366150034,2.30711098,2128.6,2127.7,1.603]
[1773366150531,1.17464643,2128.3,2127.7,1.603]
[1773366150706,1.64982679,2129.0,2127.9,3.76935]
[1773366150909,2.30711098,2128.5,2127.7,1.603]
[1773366151118,0.47556658,2128.6,2127.7,1.603]
[1773366151515,2.30711098,2128.5,2127.7,1.603]
[1773366152202,2.30711098,2128.2,2127.1,11.98946]
[1773366152421,2.30711098,2128.2,2127.1,9.237]
[1773366152729,2.30711098,2128.2,2127.2,1.17525385]
[1773366152730,1.17475682,2128.1,2127.2,1.17525385]
[1773366153020,1.17475682,2128.1,2127.2,5.57831]
[1773366153405,1.17475682,2128.1,2127.3,1.607]
[1773366153611,3.47628447,2128.1,2127.3,1.607]
[1773366154415,1.64982679,2129.0,2127.4,0.4718133]
[1773366154706,0.002,2127.9,2127.4,1.17514336]
[1773366154911,0.002,2127.9,2127.3,1.607]
[1773366155225,0.002,2127.9,2127.4,1.614]
[1773366156347,0.002,2128.1,2127.4,2.0858133]
[1773366156702,0.002,2128.1,2127.5,1.17508813]
[1773366157809,0.002,2128.1,2127.1,1.1753091]
[1773366158026,0.002,2128.1,2127.2,1.622]
[1773366158525,0.47756658,2128.1,2127.2,1.622]
[1773366158832,1.17481203,2128.0,2127.2,2.79724784]
[1773366159132,0.002,2128.1,2127.2,2.79724784]
[1773366159331,0.002,2128.1,2127.3,0.4718133]
[1773366159520,0.002,2128.1,2127.4,4.333089]
[1773366159930,0.002,2128.1,2127.4,0.4718133]
[1773366160716,0.002,2128.1,2127.2,2.79724784]
[1773366162507,0.002,2128.1,2127.4,0.4718133]
[1773366162703,0.002,2128.1,2127.5,1.17508813]
[1773366164623,0.002,2128.4,2128.0,2.48515212]
[1773366164822,0.002,2128.4,2128.2,1.17470162]
[1773366166211,0.1662581,2129.5,2128.5,0.4935808]
[1773366166448,0.1662581,2129.5,2128.8,17.769304]
[1773366166633,0.1662581,2129.5,2128.9,1.641]
[1773366166813,0.1662581,2129.5,2129.0,1.17426021]
[1773366167010,1.34028703,2129.5,2128.9,1.641]
[1773366167424,0.1662581,2129.5,2128.9,2.81529973]
[1773366167843,1.34025018,2129.5,2128.9,1.641]
[1773366168540,1.340243,2129.5,2128.9,2.81531498]
[1773366168747,1.340243,2129.5,2128.9,1.641]
[1773366168953,1.340243,2129.5,2128.9,2.81530587]
[1773366169161,1.340243,2129.5,2128.2,1.17470162]
[1773366169162,0.49277257,2129.4,2128.2,1.17470162]
[1773366169643,0.49277257,2129.4,2128.4,4.015295]
[1773366170040,1.340243,2129.5,2128.4,4.015295]
[1773366170350,0.1662581,2129.5,2128.5,9.028617]
[1773366170646,0.49921764,2129.4,2128.5,1.648]
[1773366170823,1.17409477,2129.3,2128.6,1.17448087]
[1773366171025,1.67329753,2129.4,2128.6,1.17448087]
[1773366171228,1.67329753,2129.4,2128.5,1.648]
[1773366172119,2.48515212,2129.2,2128.2,1.652]
[1773366172321,2.48515212,2128.9,2127.7,3.75203624]
[1773366172533,2.48515212,2129.2,2127.8,9.128725]
[1773366172735,2.48515212,2129.2,2127.7,3.75203624]
[1773366172934,1.17420506,2129.1,2127.6,2.82697977]
[1773366173129,2.48515212,2128.9,2127.6,2.82697977]
[1773366173623,1.17420506,2129.1,2127.6,2.82702834]
[1773366173624,0.49921764,2128.5,2127.6,2.82702834]
[1773366173826,0.49921764,2129.0,2127.6,2.82702834]
[1773366174350,0.49921764,2129.0,2127.7,0.0469991]
[1773366174929,0.49921764,2128.7,2127.7,1.22194462]
[1773366175226,0.49921764,2128.7,2127.6,6.35211278]
[1773366175227,0.49921764,2128.7,2127.6,1.652]
[1773366175625,0.49921764,2128.4,2127.6,1.652]
[1773366176538,0.49921764,2128.4,2127.3,0.001]
[1773366176738,0.49921764,2128.1,2127.3,0.001]
[1773366177057,0.49921764,2127.9,2127.3,0.001]
[1773366177629,2.8010983,2127.8,2127.3,0.001]
[1773366177964,0.49921764,2127.7,2127.3,0.001]
[1773366178160,2.8010983,2127.5,2126.3,1.662]
[1773366179229,1.17514336,2127.4,2126.4,1.17569601]
[1773366179843,0.49921764,2127.3,2126.4,1.17569601]
[1773366180163,0.49921764,2127.3,2126.6,0.001]
[1773366180532,1.17514336,2127.4,2126.6,0.001]
[1773366180729,4.69987671,2127.8,2126.7,0.45486881]
[1773366180938,4.69987671,2127.8,2126.6,0.001]
[1773366180939,1.17464643,2128.3,2126.9,18.89720947]
[1773366181145,0.49921764,2128.2,2126.9,2.75674947]
[1773366181329,0.49921764,2128.0,2127.0,1.665]
[1773366181731,2.8010983,2127.8,2127.0,1.665]
[1773366181934,2.8010983,2127.8,2127.1,0.04701236]
[1773366182335,0.49921764,2127.7,2127.0,1.665]
[1773366182948,2.30188066,2127.5,2126.6,1.17655084]
[1773366183133,2.30188066,2127.3,2126.6,0.001]
[1773366183334,1.17525385,2127.2,2126.6,0.001]
[1773366185133,0.49921764,2127.1,2126.6,0.001]
[1773366185341,1.17536436,2127.0,2126.6,0.001]
[1773366186145,1.6745547,2127.1,2126.6,0.001]
[1773366186675,0.49921764,2127.0,2126.6,0.001]
[1773366186903,0.49921764,2127.0,2126.4,0.001]
[1773366187073,2.30188066,2126.8,2126.4,0.001]
[1773366187662,1.17553016,2126.7,2126.4,0.001]
[1773366189683,1.17553016,2126.7,2126.1,0.001]
[1773366189684,0.49921764,2126.6,2126.1,0.001]
[1773366190263,2.8010983,2126.6,2126.1,0.001]
[1773366190874,0.49921764,2126.6,2126.1,0.001]
[1773366191271,2.30188066,2126.5,2126.1,0.001]
[1773366191765,1.17569601,2126.4,2126.1,0.001]
[1773366192167,1.17568407,2126.5,2126.1,0.001]
[1773366192366,4.93794418,2127.1,2126.1,0.001]
[1773366192367,1.674361,2127.4,2126.2,0.45486881]
[1773366192605,1.674361,2127.4,2126.3,0.04703005]
[1773366192861,0.49921764,2127.2,2126.3,0.04703005]
[1773366193090,0.49921764,2127.2,2126.4,0.04702784]
[1773366193291,1.17568406,2127.1,2126.2,0.45486881]
[1773366193697,1.17536436,2127.0,2126.3,1.1767513]
[1773366194098,2.85026606,2127.0,2126.3,0.001]
[1773366194398,1.17568406,2126.9,2126.3,0.001]
[1773366194960,1.674582,2127.0,2126.3,0.001]
[1773366195164,1.17568406,2127.0,2126.3,0.04803005]
[1773366195909,1.17568406,2127.0,2126.4,1.17569601]
[1773366196208,1.17568406,2127.0,2126.5,0.04702562]
[1773366198291,1.17568406,2127.0,2126.6,1.17558544]
[1773366198793,1.17568406,2127.0,2126.5,1.1756018]
[1773366199576,4.70108793,2127.2,2126.5,1.1756018]
[1773366199779,1.17568406,2127.1,2126.5,1.1756018]
[1773366200475,1.17568406,2127.1,2126.3,1.1767513]
[1773366200698,2.30388066,2127.5,2126.9,2.78271563]
[1773366200699,0.002,2127.5,2126.9,2.78271563]
[1773366200997,0.002,2127.5,2127.0,2.14783497]
[1773366201813,0.002,2127.5,2127.1,0.48083497]
[1773366202791,0.002,2127.5,2127.2,3.95796948]
[1773366203529,0.002,2127.5,2127.2,1.65608882]
[1773366203710,0.002,2127.5,2127.2,1.17525385]
[1773366205023,0.002,2127.5,2127.3,0.48083497]
[1773366206923,0.002,2127.5,2127.4,1.17514336]
[1773366207518,0.002,2127.8,2127.4,1.17514336]
[1773366207823,1.17568406,2127.7,2127.5,1.666]
[1773366208190,1.63320764,2128.3,2127.5,1.666]
[1773366208391,4.6979422,2128.6,2127.6,0.48083497]
[1773366209018,0.45851979,2128.6,2127.7,1.17497767]
[1773366209189,0.45851979,2128.4,2127.5,2.84105639]
[1773366209390,0.45851979,2128.4,2127.6,1.666]
[1773366209926,0.002,2127.8,2127.6,1.666]
[1773366210827,0.46051979,2127.8,2127.1,1.665]
[1773366211122,1.63349746,2127.7,2127.1,1.665]
[1773366211523,1.63349746,2127.7,2127.1,2.84030802]
[1773366211824,1.63349746,2127.7,2127.1,1.665]
[1773366212012,1.17497767,2127.7,2127.1,1.665]
[1773366212211,1.17694579,2127.8,2127.1,2.84029107]
[1773366212418,1.63546558,2127.8,2127.1,2.84029107]
[1773366212725,0.45851979,2127.7,2127.1,2.84026747]
[1773366212917,0.45851979,2127.7,2127.1,1.665]
[1773366213296,1.1750329,2127.6,2127.1,2.84030159]
[1773366213504,1.63353925,2127.7,2127.1,2.84030159]
[1773366213804,1.17695897,2127.8,2127.1,2.84030159]
[1773366214020,0.002,2127.8,2127.1,2.84030159]
[1773366214593,0.002,2127.8,2127.4,2.30135082]
[1773366214798,0.45851979,2128.3,2127.5,0.04700352]
[1773366214799,1.63317834,2128.3,2127.5,0.04700352]
[1773366215319,1.17453605,2128.5,2127.6,1.1750329]
[1773366215834,1.17453605,2128.5,2127.7,1.7129991]
[1773366216332,0.45851979,2128.4,2127.7,1.7129991]
[1773366216828,0.45851979,2128.4,2127.7,1.666]
[1773366217534,0.45851979,2128.4,2127.7,2.84092256]
[1773366217535,1.17464643,2128.3,2127.7,2.84092256]
[1773366218199,1.17464643,2128.3,2127.7,1.666]
[1773366218521,1.63316622,2128.3,2127.7,2.84097475]
[1773366218699,1.63316622,2128.3,2127.7,2.84097394]
[1773366219235,1.63316622,2128.3,2127.7,1.666]
[1773366219443,0.45851979,2128.2,2127.4,1.666]
[1773366219799,1.63327661,2128.1,2127.4,2.84112867]
[1773366220211,1.63327661,2128.1,2127.5,0.04700352]
[1773366220507,0.45851979,2128.1,2127.5,0.04700352]
[1773366221120,0.45851979,2128.1,2127.4,1.666]
[1773366221306,0.45851979,2128.0,2127.4,1.666]
[1773366221913,1.63338703,2127.9,2127.4,1.666]
[1773366222124,0.45851979,2127.8,2127.1,1.1752674]
[1773366223033,0.45851979,2127.8,2127.3,0.001]
[1773366223329,0.45851979,2127.7,2127.3,0.001]
[1773366223907,1.1750329,2127.6,2127.3,0.001]
[1773366227812,0.45851979,2127.7,2127.3,0.001]
[1773366228013,1.63355134,2127.7,2127.3,0.001]
[1773366228539,1.17687242,2127.9,2127.3,0.001]
[1773366228839,0.002,2127.9,2127.3,0.45874825]
[1773366229006,0.002,2128.1,2127.3,2.76009907]
[1773366229210,0.002,2128.1,2127.4,0.45774825]
[1773366229432,0.002,2128.1,2127.5,1.665]
[1773366230239,0.002,2128.1,2127.6,1.1750329]
[1773366230613,0.46520757,2128.1,2127.5,1.22208809]
[1773366230844,0.46520757,2128.1,2127.4,1.17510656]
[1773366231710,0.46520757,2128.1,2127.3,1.1761547]
[1773366231938,0.46520757,2128.1,2127.3,1.17618583]
[1773366231939,0.46320757,2128.0,2127.3,1.17618583]
[1773366232143,0.46320757,2128.0,2127.3,1.17618371]
[1773366232460,1.63807481,2127.9,2127.3,0.001]
[1773366233038,1.17486724,2127.9,2127.3,0.001]
[1773366233229,1.63807481,2127.9,2127.3,0.001]
[1773366233747,0.46320757,2127.8,2127.3,0.001]
[1773366234251,1.64000119,2128.1,2127.3,0.04800794]
[1773366234457,1.63997733,2128.1,2127.4,1.17514336]
[1773366234661,0.46520757,2128.1,2127.4,1.22214909]
[1773366235062,0.46520757,2128.1,2127.4,1.17514336]
[1773366235437,1.63996714,2128.1,2127.4,1.17514336]
[1773366235842,0.46520757,2128.1,2127.4,1.17514336]
[1773366236645,1.63996619,2128.1,2127.3,5.18182868]
[1773366237056,0.46520757,2128.1,2127.3,5.18182868]
[1773366237367,0.002,2128.1,2127.4,0.48025522]
[1773366237567,0.002,2128.1,2127.5,0.04700352]
[1773366237737,0.002,2128.1,2127.5,0.04800352]
[1773366237939,0.002,2128.1,2127.5,0.001]
[1773366238138,0.002,2127.9,2127.5,0.001]
[1773366239363,0.002,2127.9,2127.4,1.663]
[1773366239364,0.46520757,2127.9,2127.4,1.663]
[1773366240572,0.46320757,2127.8,2127.4,1.663]
[1773366240745,0.46320757,2127.6,2127.4,1.663]
[1773366241148,0.46320757,2127.6,2127.3,0.001]
[1773366242157,0.46320757,2127.6,2127.3,1.17619714]
[1773366242371,1.17494028,2127.8,2127.3,1.1761712]
[1773366242549,1.63814785,2127.8,2127.3,0.001]
[1773366242739,0.46320757,2127.7,2127.3,0.001]
[1773366244774,0.46320757,2127.5,2127.3,0.001]
[1773366245271,0.46320757,2127.5,2127.0,0.001]
[1773366247076,1.17514336,2127.4,2127.0,0.001]
[1773366247777,1.63835093,2127.4,2127.0,0.001]
[1773366248159,1.63824047,2127.6,2127.0,0.001]
[1773366248675,0.46320757,2127.5,2127.0,0.001]
[1773366249172,1.63835093,2127.4,2127.0,0.001]
[1773366249676,1.1750329,2127.6,2127.0,0.001]
[1773366250175,1.63824047,2127.6,2127.0,0.001]
[1773366250751,0.46320757,2127.5,2127.0,0.001]
[1773366251269,0.46320757,2127.5,2126.7,1.17652355]
[1773366251270,0.46320757,2127.3,2126.7,1.17652355]
[1773366252278,0.46320757,2127.3,2127.2,0.001]
[1773366252964,1.17514336,2127.4,2127.2,0.001]
[1773366253163,0.46320757,2127.4,2127.2,0.001]
[1773366255193,1.1751986,2127.3,2127.2,0.001]
[1773366257064,0.46320757,2127.2,2126.7,0.001]
[1773366257267,1.1753091,2127.1,2126.7,0.001]
[1773366258361,1.17524832,2127.3,2126.7,0.001]
[1773366258683,1.63838513,2127.4,2126.7,0.52827642]
[1773366260188,1.63838513,2127.4,2126.8,1.17547489]
[1773366260189,0.46320757,2127.4,2126.8,1.17547489]
[1773366260395,1.17710164,2127.5,2126.9,0.527272]
[1773366261093,1.17709327,2127.5,2126.9,0.527272]
[1773366262389,1.17709327,2127.5,2127.0,1.17536436]
[1773366263368,0.002,2127.5,2127.0,1.63404246]
[1773366263990,0.002,2127.5,2127.1,0.4586781]
[1773366264191,0.002,2127.5,2127.2,1.643]
[1773366264566,0.002,2127.5,2127.2,2.81825294]
[1773366265093,0.002,2127.5,2127.2,1.643]
[1773366267777,0.002,2127.3,2127.2,1.643]
[1773366268301,0.470694,2127.3,2126.9,0.001]
[1773366268472,1.64590084,2127.3,2126.9,0.001]
[1773366268989,0.002,2127.3,2126.9,0.04801678]
[1773366269769,0.002,2127.3,2126.9,0.50669488]
[1773366269970,0.002,2127.5,2127.0,0.4586781]
[1773366270207,0.002,2127.5,2127.2,0.4586781]
[1773366270501,0.002,2127.5,2127.4,0.4586781]
[1773366270689,0.002,2127.5,2127.4,2.0966781]
[1773366271601,0.002,2127.5,2127.4,1.638]
[1773366272802,0.002,2127.5,2127.4,2.81314336]
[1773366273804,0.002,2127.5,2127.4,3.27182146]
[1773366274013,0.002,2127.5,2127.4,2.81314336]
[1773366277105,0.002,2127.5,2127.4,2.86014909]
[1773366277907,0.002,2127.5,2127.4,2.81314336]
[1773366279107,0.468694,2128.0,2127.4,2.81314336]
[1773366279307,0.468694,2127.9,2127.4,2.81314336]
[1773366279511,0.468694,2127.9,2127.4,2.86014909]
[1773366280022,6.9992357,2128.4,2127.4,2.86014909]
[1773366280023,1.64321522,2128.6,2127.7,0.4586781]
[1773366280180,0.468694,2128.6,2127.7,0.4586781]
[1773366280382,0.468694,2128.8,2127.9,0.4586781]
[1773366280582,0.468694,2128.8,2128.0,2.0936781]
[1773366281086,1.17434457,2128.9,2128.1,0.4586781]
[1773366281283,1.64299575,2129.0,2128.2,1.63337972]
[1773366281595,0.468694,2129.0,2128.3,0.4586781]
[1773366282209,0.002,2128.6,2128.2,1.17470162]
[1773366282509,0.470694,2128.6,2127.9,1.17486724]
[1773366282710,0.470694,2128.6,2127.8,1.63358611]
[1773366283121,0.470694,2128.6,2127.8,1.17490801]
[1773366283278,1.64953456,2128.5,2127.6,1.63924737]
[1773366283610,1.64953456,2128.5,2127.7,0.0469991]
[1773366283802,0.47499851,2128.4,2127.7,1.6819991]
[1773366284002,0.47499851,2128.4,2127.7,1.635]
[1773366285513,1.64964494,2128.3,2127.7,2.8099508]
[1773366285712,0.47499851,2128.2,2127.8,0.04699689]
[1773366287510,1.64971715,2128.2,2127.8,0.04699689]
[1773366288029,1.64971715,2128.2,2127.3,5.16600148]
[1773366288030,0.47499851,2127.8,2127.3,0.001]
[1773366288186,0.47499851,2127.6,2127.3,0.001]
[1773366290105,1.17508813,2127.5,2127.3,0.001]
[1773366290319,0.47499851,2127.4,2127.3,0.001]
[1773366290997,2.75280292,2127.3,2127.0,0.001]
[1773366291191,0.4519384,2127.2,2126.7,0.001]
[1773366292210,0.4519384,2127.0,2126.7,0.001]
[1773366294424,0.4519384,2126.8,2126.5,1.635]
[1773366294718,0.4519384,2126.8,2126.5,0.001]
[1773366296114,0.4519384,2126.8,2126.4,0.001]
[1773366296692,1.62741329,2126.8,2126.7,0.001]
[1773366297614,1.62730276,2127.0,2126.7,0.001]
[1773366297985,1.17536436,2127.0,2126.7,0.001]
[1773366298311,0.4519384,2126.9,2126.7,0.001]
[1773366298920,1.17547489,2126.8,2126.7,0.001]
[1773366299419,1.6273726,2126.9,2126.7,0.001]
[1773366300121,0.04699704,2127.2,2126.7,0.45337396]
[1773366300601,1.62898032,2127.6,2126.8,0.45237396]
[1773366300796,0.002,2127.5,2126.8,0.45237396]